fUST/lending_fUST_20250208
["ID","MTS","AMOUNT","RATE_DAILY","PERIOD"]
[352188179,1738984250494,-500.0,0.00011232,2]
[352188180,1738984250503,-500.0,0.00011232,2]
[352188181,1738984250512,-500.0,0.00011232,2]
[352188182,1738984250521,-596.64,0.00011232,2]
[352188183,1738984250530,-1448.85,0.00011232,2]
[352188184,1738984250539,-500.0,0.00011232,2]
[352188185,1738984250551,-4568.74,0.00011232,2]
[352188186,1738984250560,-500.0,0.00011232,2]
[352188187,1738984250569,-500.0,0.00011232,2]
[352188188,1738984250578,-596.22,0.00011232,2]
[352188189,1738984250587,-2947.04,0.00011232,2]
[352188190,1738984250597,-1068.19,0.00011232,2]
[352188191,1738984250607,-500.0,0.00011232,2]
[352188192,1738984250616,-598.68,0.00011232,2]
[352188193,1738984250625,-541.47714576,0.00011232,2]
[352188194,1738984250635,-500.0,0.00011232,2]
[352188195,1738984250644,-500.0,0.00011232,2]
[352188196,1738984250653,-500.0,0.00011232,2]
[352188197,1738984250661,-500.0,0.00011232,2]
[352188198,1738984250670,-500.0,0.00011232,2]
[352188199,1738984250679,-500.0,0.00011232,2]
[352188200,1738984250699,-500.0,0.00011232,2]
[352188201,1738984250709,-500.0,0.00011232,2]
[352188202,1738984250718,-500.0,0.00011232,2]
[352188203,1738984250728,-500.0,0.00011232,2]
[352188204,1738984250737,-500.0,0.00011232,2]
[352188205,1738984250746,-500.0,0.00011232,2]
[352188206,1738984250755,-500.0,0.00011232,2]
[352188207,1738984250764,-331.13522163,0.00011232,2]
[352188208,1738984250774,-500.0,0.00011232,2]
[352188209,1738984250783,-3453.31,0.00011232,2]
[352188210,1738984250792,-286.2568197,0.00011232,2]
[352188211,1738984250801,-481.86155144,0.00011257,2]
[352188212,1738984250810,-2955.85111631,0.00011269,2]
[352188213,1738984250820,-151.0,0.000113,2]
[352188214,1738984250829,-151.0,0.000113,2]
[352188215,1738984250838,-13265.39216455,0.00011301,2]
[352188216,1738984250847,-216.067364,0.00011369,2]
[352188217,1738984250856,-151.0,0.00011369,2]
[352188218,1738984250865,-151.0,0.00011369,2]
[352188219,1738984250874,-151.0,0.00011369,2]
[352188220,1738984250883,-151.0,0.00011369,2]
[352188221,1738984250892,-151.0,0.00011369,2]
[352188222,1738984250901,-500.0,0.00011369,2]
[352188223,1738984250910,-500.0,0.00011369,2]
[352188224,1738984250919,-500.0,0.00011369,2]
[352188225,1738984250928,-500.0,0.00011369,2]
[352188226,1738984250937,-500.0,0.00011369,2]
[352188227,1738984250946,-500.0,0.00011369,2]
[352188228,1738984250954,-293.5474661,0.00011369,2]
[352188229,1738984250963,-500.0,0.00011369,2]
[352188230,1738984250972,-503.55617974,0.00011369,2]
[352188231,1738984250981,-499.27873864,0.00011369,2]
[352188232,1738984250991,-502.46304177,0.00011369,2]
[352188233,1738984251000,-500.0,0.00011369,2]
[352188234,1738984251009,-500.0,0.00011369,2]
[352188235,1738984251019,-500.0,0.00011369,2]
[352188236,1738984251028,-500.0,0.00011369,2]
[352188237,1738984251037,-500.0,0.00011369,2]
[352188238,1738984251047,-546.46343074,0.00011369,2]
[352188239,1738984251056,-500.0,0.00011369,2]
[352188240,1738984251065,-503.4108298,0.00011369,2]
[352188241,1738984251075,-503.68311422,0.00011369,2]
[352188242,1738984251084,-500.0,0.00011369,2]
[352188243,1738984251093,-504.40682222,0.00011369,2]
[352188244,1738984251102,-502.55940711,0.00011369,2]
[352188245,1738984251111,-500.0,0.00011369,2]
[352188246,1738984251121,-500.0,0.00011369,2]
[352188247,1738984251130,-579.79,0.00011369,2]
[352188248,1738984251139,-500.0,0.00011369,2]
[352188249,1738984251148,-504.71003298,0.00011369,2]
[352188250,1738984251156,-500.0,0.00011369,2]
[352188251,1738984251166,-500.0,0.00011369,2]
[352188252,1738984251175,-500.0,0.00011369,2]
[352188253,1738984251184,-644.45954468,0.00011369,2]
[352188254,1738984251193,-502.71699891,0.00011369,2]
[352188255,1738984251203,-500.0,0.00011369,2]
[352188256,1738984251212,-500.0,0.00011369,2]
[352188257,1738984251222,-500.0,0.00011369,2]
[352188258,1738984251231,-500.0,0.00011369,2]
[352188259,1738984251240,-500.0,0.00011369,2]
[352188260,1738984251249,-500.0,0.00011369,2]
[352188261,1738984251258,-500.0,0.00011369,2]
[352188262,1738984251268,-500.0,0.00011369,2]
[352188263,1738984251277,-826.65,0.00011369,2]
[352188264,1738984251286,-596.13797037,0.00011369,2]
[352188265,1738984251295,-500.0,0.00011369,2]
[352188266,1738984251304,-1027.62,0.00011369,2]
[352188267,1738984251314,-503.4192844,0.00011369,2]
[352188268,1738984251323,-500.0,0.00011369,2]
[352188269,1738984251332,-500.0,0.00011369,2]
[352188270,1738984251342,-500.0,0.00011369,2]
[352188271,1738984251353,-500.0,0.00011369,2]
[352188272,1738984251363,-504.6651065,0.00011369,2]
[352188273,1738984251372,-500.0,0.00011369,2]
[352188274,1738984251382,-423.42867661,0.00011369,2]
[352188275,1738984251391,-418.64516595,0.00011369,2]
[352188276,1738984251400,-500.0,0.00011369,2]
[352188277,1738984251409,-598.35,0.00011369,2]
[352188278,1738984251418,-500.0,0.00011369,2]
[352188279,1738984251427,-504.48590522,0.00011369,2]
[352188280,1738984251436,-504.78991314,0.00011369,2]
[352188281,1738984251446,-500.0,0.00011369,2]
[352188282,1738984251455,-500.0,0.00011369,2]
[352188283,1738984251464,-500.0,0.00011369,2]
[352188284,1738984251474,-500.0,0.00011369,2]
[352188285,1738984251483,-291.69960505,0.00011369,2]
[352188286,1738984251492,-500.0,0.00011369,2]
[352188287,1738984251501,-500.0,0.00011369,2]
[352188288,1738984251510,-500.0,0.00011369,2]
[352188289,1738984251520,-276.87975725,0.00011369,2]
[352188290,1738984251529,-445.82244868,0.00011369,2]
[352188291,1738984251539,-500.0,0.00011369,2]
[352188292,1738984251549,-736.69,0.00011369,2]
[352188293,1738984251559,-503.1037348,0.00011369,2]
[352188294,1738984251568,-500.0,0.00011369,2]
[352188295,1738984251577,-500.0,0.00011369,2]
[352188296,1738984251587,-503.81779582,0.00011369,2]
[352188297,1738984251596,-503.62342582,0.00011369,2]
[352188298,1738984251605,-500.0,0.00011369,2]
[352188299,1738984251614,-500.0,0.00011369,2]
[352188300,1738984251625,-500.0,0.00011369,2]
[352188301,1738984251634,-500.0,0.00011369,2]
[352188302,1738984251643,-966.14,0.00011369,2]
[352188303,1738984251653,-500.0,0.00011369,2]
[352188304,1738984251663,-500.0,0.00011369,2]
[352188305,1738984251672,-500.0,0.00011369,2]
[352188306,1738984251681,-500.0,0.00011369,2]
[352188307,1738984251690,-500.0,0.00011369,2]
[352188308,1738984251699,-228.96689035,0.00011369,2]
[352188309,1738984251709,-500.0,0.00011369,2]
[352188310,1738984251717,-503.79633868,0.00011369,2]
[352188311,1738984251728,-589.7269336,0.00011369,2]
[352188312,1738984251737,-1244.41,0.00011369,2]
[352188313,1738984251746,-329.95260628,0.00011369,2]
[352188314,1738984251756,-500.0,0.00011369,2]
[352188315,1738984251765,-503.26640573,0.00011369,2]
[352188316,1738984251775,-1329.47,0.00011369,2]
[352188317,1738984251784,-610.8,0.00011369,2]
[352188318,1738984251794,-500.0,0.00011369,2]
[352188319,1738984251802,-500.0,0.00011369,2]
[352188320,1738984251811,-3126.46,0.00011369,2]
[352188321,1738984251945,-500.0,0.00011369,2]
[352188322,1738984251955,-1269.35,0.00011369,2]
[352188323,1738984251964,-377.10504213,0.00011369,2]
[352188324,1738984251974,-2915.61,0.00011369,2]
[352188325,1738984251983,-500.0,0.00011369,2]
[352188326,1738984251993,-500.0,0.00011369,2]
[352188327,1738984252004,-875.66,0.00011369,2]
[352188328,1738984252015,-502.78085355,0.00011369,2]
[352188329,1738984252024,-1969.02,0.00011369,2]
[352188330,1738984252035,-581.49025921,0.00011369,2]
[352188331,1738984252044,-500.0,0.00011369,2]
[352188332,1738984252054,-11902.52,0.00011369,2]
[352188333,1738984252066,-500.0,0.00011369,2]
[352188334,1738984252076,-624.66,0.00011369,2]
[352188335,1738984252085,-500.0,0.00011369,2]
[352188336,1738984252094,-595.85,0.00011369,2]
[352188337,1738984252103,-500.0,0.00011369,2]
[352188338,1738984252112,-1304.76,0.00011369,2]
[352188339,1738984252121,-1324.94,0.00011369,2]
[352188340,1738984252130,-500.0,0.00011369,2]
[352188341,1738984252139,-927.97,0.00011369,2]
[352188342,1738984252148,-1186.75,0.00011369,2]
[352188343,1738984252157,-582.07,0.00011369,2]
[352188344,1738984252166,-500.0,0.00011369,2]
[352188345,1738984252175,-2606.29,0.00011369,2]
[352188346,1738984252184,-500.0,0.00011369,2]
[352188347,1738984252193,-500.0,0.00011369,2]
[352188348,1738984252202,-1035.57,0.00011369,2]
[352188349,1738984252210,-1278.2,0.00011369,2]
[352188350,1738984252220,-543.28,0.00011369,2]
[352188351,1738984252229,-500.0,0.00011369,2]
[352188352,1738984252238,-1204.67,0.00011369,2]
[352188353,1738984252247,-1210.87,0.00011369,2]
[352188354,1738984252256,-620.63,0.00011369,2]
[352188355,1738984252265,-500.0,0.00011369,2]
[352188356,1738984252275,-500.0,0.00011369,2]
[352188357,1738984252284,-500.0,0.00011369,2]
[352188358,1738984252293,-500.0,0.00011369,2]
[352188359,1738984252302,-39351.51,0.00011369,2]
[352188360,1738984252311,-500.0,0.00011369,2]
[352188361,1738984252320,-3531.48,0.00011369,2]
[352188362,1738984252329,-500.0,0.00011369,2]
[352188363,1738984252338,-511.95118097,0.00011369,2]
[352188364,1738984252348,-554.93,0.00011369,2]
[352188365,1738984252357,-502.42867812,0.00011369,2]
[352188366,1738984252366,-539.09187836,0.00011369,2]
[352188367,1738984252375,-357.85706611,0.00011369,2]
[352188368,1738984252385,-780.45,0.00011369,2]
[352188369,1738984252394,-11122.78,0.00011369,2]
[352188370,1738984252402,-500.0,0.00011369,2]
[352188371,1738984252412,-1541.71,0.00011369,2]
[352188372,1738984252420,-500.0,0.00011369,2]
[352188373,1738984252429,-500.0,0.00011369,2]
[352188374,1738984252438,-500.0,0.00011369,2]
[352188375,1738984252447,-1219.21,0.00011369,2]
[352188376,1738984252456,-1020.67,0.00011369,2]
[352188377,1738984252465,-932.95,0.00011369,2]
[352188378,1738984252474,-500.0,0.00011369,2]
[352188379,1738984252484,-500.0,0.00011369,2]
[352188380,1738984252495,-500.0,0.00011369,2]
[352188381,1738984252505,-500.0,0.00011369,2]
[352188382,1738984252516,-503.13,0.00011369,2]
[352188383,1738984252525,-500.0,0.00011369,2]
[352188384,1738984252534,-500.0,0.00011369,2]
[352188385,1738984252545,-500.0,0.00011369,2]
[352188386,1738984252558,-500.0,0.00011369,2]
[352188387,1738984252568,-500.0,0.00011369,2]
[352188388,1738984252578,-741.28,0.00011369,2]
[352188389,1738984252589,-500.0,0.00011369,2]
[352188390,1738984252598,-748.65,0.00011369,2]
[352188391,1738984252608,-1472.61,0.00011369,2]
[352188392,1738984252617,-500.0,0.00011369,2]
[352188393,1738984252628,-500.0,0.00011369,2]
[352188394,1738984252637,-500.0,0.00011369,2]
[352188395,1738984252646,-566.93008606,0.00011369,2]
[352188396,1738984252655,-500.0,0.00011369,2]
[352188397,1738984252664,-500.0,0.00011369,2]
[352188398,1738984252674,-2572.05,0.00011369,2]
[352188399,1738984252683,-500.0,0.00011369,2]
[352188400,1738984252693,-661.45,0.00011369,2]
[352188401,1738984252703,-500.0,0.00011369,2]
[352188402,1738984252713,-2244.42,0.00011369,2]
[352188403,1738984252722,-505.92371965,0.00011369,2]
[352188404,1738984252731,-500.0,0.00011369,2]
[352188405,1738984252740,-975.44,0.00011369,2]
[352188406,1738984252750,-481.25986503,0.00011369,2]
[352188407,1738984252760,-500.0,0.00011369,2]
[352188408,1738984252770,-469.87198165,0.00011369,2]
[352188409,1738984252780,-500.0,0.00011369,2]
[352188410,1738984252791,-901.07,0.00011369,2]
[352188411,1738984252800,-1234.68,0.00011369,2]
[352188412,1738984252810,-2582.49,0.00011369,2]
[352188413,1738984252820,-657.79,0.00011369,2]
[352188414,1738984252831,-500.0,0.00011369,2]
[352188415,1738984252840,-500.0,0.00011369,2]
[352188416,1738984252849,-500.0,0.00011369,2]
[352188417,1738984252860,-500.0,0.00011369,2]
[352188418,1738984252869,-596.64,0.00011369,2]
[352188419,1738984252878,-1448.85,0.00011369,2]
[352188420,1738984252888,-4568.74,0.00011369,2]
[352188421,1738984252898,-500.76,0.00011369,2]
[352188422,1738984252907,-500.0,0.00011369,2]
[352188423,1738984252916,-596.22,0.00011369,2]
[352188424,1738984252926,-2947.04,0.00011369,2]
[352188425,1738984252935,-1068.19,0.00011369,2]
[352188426,1738984252944,-500.0,0.00011369,2]
[352188427,1738984252953,-598.68,0.00011369,2]
[352188428,1738984252962,-533.43,0.00011369,2]
[352188429,1738984252971,-502.6365356,0.00011369,2]
[352188430,1738984252980,-528.58042909,0.00011369,2]
[352188431,1738984252989,-500.0,0.00011369,2]
[352188432,1738984252998,-500.0,0.00011369,2]
[352188433,1738984253007,-500.0,0.00011369,2]
[352188434,1738984253016,-500.0,0.00011369,2]
[352188435,1738984253025,-500.0,0.00011369,2]
[352188436,1738984253034,-504.14001609,0.00011369,2]
[352188437,1738984253043,-500.0,0.00011369,2]
[352188438,1738984253052,-500.0,0.00011369,2]
[352188439,1738984253061,-500.0,0.00011369,2]
[352188440,1738984253070,-504.1625991,0.00011369,2]
[352188441,1738984253079,-3453.31,0.00011369,2]
[352188442,1738984253089,-151.0,0.000114,2]
[352188443,1738984253098,-151.0,0.000114,2]
[352188444,1738984253107,-7171.49,0.000115,2]
[352188445,1738984253116,-151.0,0.000115,2]
[352188446,1738984253126,-277.93223965,0.00011505,2]
[352188447,1738984253135,-151.0,0.00011506,2]
[352188448,1738984253144,-151.0,0.00011506,2]
[352188449,1738984253153,-151.0,0.00011506,2]
[352188450,1738984253162,-151.0,0.00011506,2]
[352188451,1738984253172,-151.0,0.00011506,2]
[352188452,1738984253181,-151.0,0.00011506,2]
[352188453,1738984253190,-500.0,0.00011506,2]
[352188454,1738984253199,-500.0,0.00011506,2]
[352188455,1738984253208,-545.84,0.00011506,2]
[352188456,1738984253218,-625.36247002,0.00011506,2]
[352188457,1738984253227,-500.0,0.00011506,2]
[352188458,1738984253236,-500.0,0.00011506,2]
[352188459,1738984253245,-500.0,0.00011506,2]
[352188460,1738984253255,-502.9511576,0.00011506,2]
[352188461,1738984253264,-500.0,0.00011506,2]
[352188462,1738984253274,-505.28865156,0.00011506,2]
[352188463,1738984253283,-456.55638713,0.00011506,2]
[352188464,1738984253292,-579.79,0.00011506,2]
[352188465,1738984253302,-500.0,0.00011506,2]
[352188466,1738984253311,-500.0,0.00011506,2]
[352188467,1738984253322,-500.0,0.00011506,2]
[352188468,1738984253334,-500.0,0.00011506,2]
[352188469,1738984253345,-500.0,0.00011506,2]
[352188470,1738984253355,-502.43963314,0.00011506,2]
[352188471,1738984253364,-250.8217622,0.00011506,2]
[352188472,1738984253374,-500.0,0.00011506,2]
[352188473,1738984253383,-504.65100276,0.00011506,2]
[352188474,1738984253392,-500.0,0.00011506,2]
[352188475,1738984253401,-503.20361276,0.00011506,2]
[352188476,1738984253410,-574.86060802,0.00011506,2]
[352188477,1738984253419,-826.65,0.00011506,2]
[352188478,1738984253428,-500.0,0.00011506,2]
[352188479,1738984253438,-1027.62,0.00011506,2]
[352188480,1738984253447,-500.0,0.00011506,2]
[352188481,1738984253456,-503.26882723,0.00011506,2]
[352188482,1738984253466,-504.47256772,0.00011506,2]
[352188483,1738984253475,-504.17908507,0.00011506,2]
[352188484,1738984253484,-500.0,0.00011506,2]
[352188485,1738984253494,-598.35,0.00011506,2]
[352188486,1738984253503,-500.0,0.00011506,2]
[352188487,1738984253512,-500.0,0.00011506,2]
[352188488,1738984253521,-500.0,0.00011506,2]
[352188489,1738984253530,-500.0,0.00011506,2]
[352188490,1738984253539,-500.0,0.00011506,2]
[352188491,1738984253549,-434.57022832,0.00011506,2]
[352188492,1738984253560,-500.0,0.00011506,2]
[352188493,1738984253569,-500.0,0.00011506,2]
[352188494,1738984253578,-736.69,0.00011506,2]
[352188495,1738984253587,-506.09931562,0.00011506,2]
[352188496,1738984253597,-500.0,0.00011506,2]
[352188497,1738984253606,-500.0,0.00011506,2]
[352188498,1738984253615,-500.0,0.00011506,2]
[352188499,1738984253625,-482.24979119,0.00011506,2]
[352188500,1738984253634,-500.0,0.00011506,2]
[352188501,1738984253643,-966.14,0.00011506,2]
[352188502,1738984253652,-500.0,0.00011506,2]
[352188503,1738984253661,-500.0,0.00011506,2]
[352188504,1738984253670,-647.89,0.00011506,2]
[352188505,1738984253680,-500.0,0.00011506,2]
[352188506,1738984253688,-500.0,0.00011506,2]
[352188507,1738984253697,-1244.41,0.00011506,2]
[352188508,1738984253707,-648.96117771,0.00011506,2]
[352188509,1738984253716,-1329.47,0.00011506,2]
[352188510,1738984253725,-610.8,0.00011506,2]
[352188511,1738984253734,-500.0,0.00011506,2]
[352188512,1738984253744,-500.0,0.00011506,2]
[352188513,1738984253753,-3126.46,0.00011506,2]
[352188514,1738984253762,-500.0,0.00011506,2]
[352188515,1738984253771,-1269.35,0.00011506,2]
[352188516,1738984253780,-2915.61,0.00011506,2]
[352188517,1738984253789,-500.0,0.00011506,2]
[352188518,1738984253798,-500.0,0.00011506,2]
[352188519,1738984253807,-875.66,0.00011506,2]
[352188520,1738984253816,-1969.02,0.00011506,2]
[352188521,1738984253825,-168.62084674,0.00011506,2]
[352188522,1738984253835,-11902.52,0.00011506,2]
[352188523,1738984253844,-500.0,0.00011506,2]
[352188524,1738984253853,-624.66,0.00011506,2]
[352188525,1738984253862,-500.0,0.00011506,2]
[352188526,1738984253871,-545.79,0.00011506,2]
[352188527,1738984253880,-1304.76,0.00011506,2]
[352188528,1738984253889,-1324.94,0.00011506,2]
[352188529,1738984253898,-502.69411031,0.00011506,2]
[352188530,1738984253908,-927.97,0.00011506,2]
[352188531,1738984253917,-1186.75,0.00011506,2]
[352188532,1738984253926,-582.07,0.00011506,2]
[352188533,1738984253936,-500.0,0.00011506,2]
[352188534,1738984253945,-754.052555,0.00011506,2]
[352188535,1738984254134,-1852.237445,0.00011506,2]
[352188536,1738984254144,-166.02788219,0.00011506,2]
[352188537,1738984254153,-319.5354565,0.00011506,2]
[352188538,1738984254163,-1035.57,0.00011506,2]
[352188539,1738984254172,-1278.2,0.00011506,2]
[352188540,1738984254181,-543.28,0.00011506,2]
[352188541,1738984254190,-1204.67,0.00011506,2]
[352188542,1738984254199,-1210.87,0.00011506,2]
[352188543,1738984254208,-620.63,0.00011506,2]
[352188544,1738984254217,-401.75492638,0.00011506,2]
[352188545,1738984254226,-502.64187327,0.00011506,2]
[352188546,1738984254235,-500.0,0.00011506,2]
[352188547,1738984254244,-500.0,0.00011506,2]
[352188548,1738984254253,-11790.23697622,0.00011506,2]
[352188549,1738984254264,-27561.27302378,0.00011506,2]
[352188550,1738984254273,-500.0,0.00011506,2]
[352188551,1738984254282,-3531.48,0.00011506,2]
[352188552,1738984254291,-500.0,0.00011506,2]
[352188553,1738984254311,-554.93,0.00011506,2]
[352188554,1738984254323,-780.45,0.00011506,2]
[352188555,1738984254332,-11122.78,0.00011506,2]
[352188556,1738984254342,-500.0,0.00011506,2]
[352188557,1738984254351,-1541.71,0.00011506,2]
[352188558,1738984254360,-502.55265723,0.00011506,2]
[352188559,1738984254369,-634.99947041,0.00011506,2]
[352188560,1738984254378,-500.0,0.00011506,2]
[352188561,1738984254387,-1219.21,0.00011506,2]
[352188562,1738984254397,-1020.67,0.00011506,2]
[352188563,1738984254406,-932.95,0.00011506,2]
[352188564,1738984254415,-502.83936871,0.00011506,2]
[352188565,1738984254425,-500.0,0.00011506,2]
[352188566,1738984254434,-504.07589323,0.00011506,2]
[352188567,1738984254444,-212.40154892,0.00011506,2]
[352188568,1738984254927,-500.0,0.00010958,2]
[352188569,1738984254936,-500.0,0.00011095,2]
[352188570,1738984254945,-500.0,0.00011095,2]
[352188571,1738984254955,-500.0,0.00011232,2]
[352188572,1738984254964,-500.0,0.00011232,2]
[352188573,1738984254973,-500.0,0.00011369,2]
[352188574,1738984254983,-500.0,0.00011369,2]
[352188575,1738984254992,-287.59845108,0.00011506,2]
[352188576,1738984255001,-500.0,0.00011506,2]
[352188577,1738984255010,-500.0,0.00011506,2]
[352188578,1738984255019,-500.0,0.00011506,2]
[352188579,1738984255028,-741.28,0.00011506,2]
[352188580,1738984255038,-500.0,0.00011506,2]
[352188581,1738984255047,-748.65,0.00011506,2]
[352188582,1738984255056,-1472.61,0.00011506,2]
[352188583,1738984255068,-502.61025418,0.00011506,2]
[352188584,1738984255077,-500.0,0.00011506,2]
[352188585,1738984255087,-500.0,0.00011506,2]
[352188586,1738984255096,-2572.05,0.00011506,2]
[352188587,1738984255106,-500.0,0.00011506,2]
[352188588,1738984255116,-661.45,0.00011506,2]
[352188589,1738984255126,-2244.42,0.00011506,2]
[352188590,1738984255135,-500.0,0.00011506,2]
[352188591,1738984255144,-975.44,0.00011506,2]
[352188592,1738984255154,-503.04970766,0.00011506,2]
[352188593,1738984255163,-184.12373446,0.00011506,2]
[352188594,1738984255175,-315.87626554,0.00011506,2]
[352188595,1738984255185,-684.12373446,0.00011506,2]
[352188596,1738984255430,-500.0,0.00010958,2]
[352188597,1738984255440,-216.94626554,0.00011506,2]
[352188598,1738984255449,-132.58056365,0.00011506,2]
[352188599,1738984255461,-1000.9,0.00011506,2]
[352188600,1738984255472,-101.19943635,0.00011506,2]
[352188601,1738984255482,-579.24905255,0.00011506,2]
[352188602,1738984255493,-2003.24094745,0.00011506,2]
[352188603,1738984255503,-657.79,0.00011506,2]
[352188604,1738984255512,-502.6377895,0.00011506,2]
[352188605,1738984255521,-500.0,0.00011506,2]
[352188606,1738984255531,-500.0,0.00011506,2]
[352188607,1738984255540,-500.0,0.00011506,2]
[352188608,1738984255552,-596.64,0.00011506,2]
[352188609,1738984255562,-1448.85,0.00011506,2]
[352188610,1738984255572,-4568.74,0.00011506,2]
[352188611,1738984255581,-500.0,0.00011506,2]
[352188612,1738984255591,-596.22,0.00011506,2]
[352188613,1738984255600,-2947.04,0.00011506,2]
[352188614,1738984255609,-1068.19,0.00011506,2]
[352188615,1738984255619,-313.34079779,0.00011506,2]
[352188616,1738984255628,-598.68,0.00011506,2]
[352188617,1738984255637,-529.88159274,0.00011506,2]
[352188618,1738984255647,-500.0,0.00011506,2]
[352188619,1738984255658,-500.0,0.00011506,2]
[352188620,1738984255668,-500.0,0.00011506,2]
[352188621,1738984255677,-500.0,0.00011506,2]
[352188622,1738984255686,-504.28951863,0.00011506,2]
[352188623,1738984255695,-500.0,0.00011506,2]
[352188624,1738984255704,-3453.31,0.00011506,2]
[352188625,1738984255714,-500.0,0.00011506,2]
[352188626,1738984255724,-500.0,0.00011506,2]
[352188627,1738984255734,-1000.0,0.00011521,2]
[352188628,1738984255743,-1000.0,0.00011521,2]
[352188629,1738984255753,-531.26523494,0.00011521,2]
[352188630,1738984255763,-1000.0,0.00011521,2]
[352188631,1738984255772,-500.72633651,0.00011521,2]
[352188632,1738984255781,-160.032733,0.00011578,6]
[352188633,1738984255790,-160.032733,0.00011578,6]
[352188634,1738984255799,-160.032733,0.00011578,6]
[352188635,1738984255808,-160.032733,0.00011578,6]
[352188636,1738984255817,-1016.39,0.000116,3]
[352188637,1738984255827,-508.849,0.000116,2]
[352188638,1738984255836,-151.0,0.00011643,2]
[352188639,1738984255845,-151.0,0.00011643,2]
[352188640,1738984255854,-216.067364,0.00011643,2]
[352188641,1738984255863,-151.0,0.00011643,2]
[352188642,1738984255873,-76.21604317,0.00011643,2]
[352188643,1738984255885,-74.78395683,0.00011643,2]
[352188644,1738984255894,-215.460446,0.00011643,2]
[352188645,1738984255903,-151.0,0.00011643,2]
[352188646,1738984255912,-179.750673,0.00011643,2]
[352188647,1738984255921,-151.0,0.00011643,2]
[352188648,1738984255930,-500.0,0.00011643,2]
[352188649,1738984255940,-500.0,0.00011643,2]
[352188650,1738984255949,-500.0,0.00011643,2]
[352188651,1738984255958,-500.0,0.00011643,2]
[352188652,1738984255967,-500.0,0.00011643,2]
[352188653,1738984255978,-500.0,0.00011643,2]
[352188654,1738984255987,-500.0,0.00011643,2]
[352188655,1738984255996,-500.0,0.00011643,2]
[352188656,1738984256005,-503.57704402,0.00011643,2]
[352188657,1738984256014,-503.6510775,0.00011643,2]
[352188658,1738984256024,-500.0,0.00011643,2]
[352188659,1738984256033,-826.65,0.00011643,2]
[352188660,1738984256042,-500.0,0.00011643,2]
[352188661,1738984256052,-1027.62,0.00011643,2]
[352188662,1738984256061,-500.0,0.00011643,2]
[352188663,1738984256070,-504.01895371,0.00011643,2]
[352188664,1738984256080,-598.35,0.00011643,2]
[352188665,1738984256090,-552.94213255,0.00011643,2]
[352188666,1738984256099,-500.0,0.00011643,2]
[352188667,1738984256108,-500.0,0.00011643,2]
[352188668,1738984256118,-500.0,0.00011643,2]
[352188669,1738984256129,-500.0,0.00011643,2]
[352188670,1738984256138,-736.69,0.00011643,2]
[352188671,1738984256148,-500.0,0.00011643,2]
[352188672,1738984256157,-500.0,0.00011643,2]
[352188673,1738984256166,-500.0,0.00011643,2]
[352188674,1738984256175,-623.35624024,0.00011643,2]
[352188675,1738984256185,-500.0,0.00011643,2]
[352188676,1738984256195,-966.14,0.00011643,2]
[352188677,1738984256205,-500.0,0.00011643,2]
[352188678,1738984256215,-500.0,0.00011643,2]